Cogmind - Beta 13 @@@ ROGUE MODE // 2024.04.23 @ 18:52:08 Player: Biasface Result: Destroyed by S-10 Pest with Light Assault Rifle Performance ------------- Evolutions (0) 0 Regions Visited (4) 800 Robots Destroyed (26) 130 Value Destroyed (558) 558 Prototype IDs (5) 100 Alien Tech Used (0) 0 Bonus (0) 0 TOTAL SCORE: 1588 Bonus ------- None Cogmind --------- Core Integrity 0/250 Matter 181/300 Energy 250/250 System Corruption 0% Temperature Cool (0) Movement Walking (190) Ox1 Location -9/Mines Parts ------- > --- POWER (1) -------- Ion Engine > --- PROPULSION (2) --- Aluminum Leg Aluminum Leg > --- UTILITY (2) ------ Improved Heat Sink Large Storage Unit > --- WEAPON (2) ------- Light Assault Rifle Rocket Launcher > --- INVENTORY (15) --- Ion Engine Light Nuclear Core Light Treads Light Treads Aluminum Leg Medium Matter Pod (99) Large Matter Pod (150) Hacking Suite EM Pulse Gun Light Assault Rifle Light Assault Rifle Light Assault Rifle Light Assault Rifle Mining Claw Peak State ------------ > --- POWER ------------ Ion Engine > --- PROPULSION ------- Aluminum Leg Aluminum Leg > --- UTILITY ---------- Improved Heat Sink Large Storage Unit > --- WEAPON ----------- Light Assault Rifle Rocket Launcher > --- INVENTORY -------- Ion Engine Light Nuclear Core Light Treads Light Treads Aluminum Leg Medium Matter Pod Hacking Suite EM Pulse Gun Light Assault Rifle Light Assault Rifle Light Assault Rifle Mining Claw [Rating: 11] Favorites ----------- Power Ion Engine Engine Ion Engine Propulsion Light Treads Treads Light Treads Leg Aluminum Leg Utility Improved Heat Sink Device Improved Heat Sink Storage Large Storage Unit Weapon Light Assault Rifle Energy Gun Medium Laser Ballistic Gun Light Assault Rifle Launcher Rocket Launcher Build | -11 -10 -10 -10 -9 ------- Run | Yrd Mat Min Exi Min Slots Evolved . | . . . . . Power . | . . . . . Propulsion . | . . . . . Utility . | . . . . . Weapon . | . . . . . Parts Attached 28 | 8 10 6 . 4 Power 2 | 1 1 . . . Engine 2 | 1 1 . . . Core . | . . . . . Reactor . | . . . . . Propulsion 7 | 2 2 3 . . Treads 4 | 2 2 . . . Leg 3 | . . 3 . . Wheel . | . . . . . Hover . | . . . . . Flight . | . . . . . Utility 6 | 2 3 1 . . Device 4 | 1 2 1 . . Storage 2 | 1 1 . . . Processor . | . . . . . Hackware . | . . . . . Protection . | . . . . . Artifact . | . . . . . Weapon 13 | 3 4 2 . 4 Energy Gun 3 | 2 1 . . . Energy Cannon . | . . . . . Ballistic Gun 7 | 1 3 1 . 2 Ballistic Cannon . | . . . . . Launcher 3 | . . 1 . 2 Special Weapon . | . . . . . Impact Weapon . | . . . . . Slashing Weapon . | . . . . . Piercing Weapon . | . . . . . Special Melee Weapon . | . . . . . Unidentified Prototypes . | . . . . . Parts Lost 3 | . 2 1 . . Power 1 | . 1 . . . Propulsion . | . . . . . Utility 2 | . 1 1 . . Weapon . | . . . . . Highest Loss Streak 1 | . 1 1 . . To Critical Strikes . | . . . . . Average Slot Usage (%) 99 | . 99 99 100 100 Engine 13 | . 13 14 14 14 Treads 15 | . 27 . . . Leg 12 | . . 27 28 28 Device 13 | . 13 13 14 14 Storage 14 | . 14 14 14 14 Energy Gun 2 | . 4 . . . Ballistic Gun 25 | . 22 28 28 24 Naked Turns . | . . . . . Heaviest Build 31 | 14 28 28 28 31 Greatest Support 40 | 40 40 40 20 20 Greatest Overweight (x) 1 | . . 1 1 1 Average Overweight (x) . | . . . 1 1 Largest Inventory Capacity 15 | 8 15 15 15 15 Average Capacity 13 | 6 12 15 15 15 Most Carried 14 | 4 11 12 13 14 Average Carried 9 | 2 8 11 12 13 Final Capacity 15 | 8 15 15 15 15 Final Carried 14 | 4 11 12 13 14 Class Distribution -------------------- 100% | Mutant Dominant Class ---------------- Mutant | -10/Materials Mutant | -10/Mines Mutant | -10/Exiles Mutant | -9/Mines Resources | -11 -10 -10 -10 -9 ----------- Run | Yrd Mat Min Exi Min Matter Collected 678 | 286 236 129 1 26 Remotely . | . . . . . Salvage Created 716 | 87 402 204 . 23 Parts 60 | 6 31 18 . 5 Haulers Intercepted 1 | . 1 . . . Recyclers Shooed 3 | 1 . 2 . . Parts Field Recycled . | . . . . . Retrieved Matter . | . . . . . Parts Self-Destructed . | . . . . . Prevented . | . . . . . Kills | -11 -10 -10 -10 -9 ------- Run | Yrd Mat Min Exi Min Combat Hostiles Destroyed 21 | . 9 7 . 5 Guns 13 | . 9 4 . . AOE 8 | . . 3 . 5 Classes Destroyed 7 | 2 4 1 . . Worker 1 | . . 1 . . Tunneler 1 | 1 . . . . Hauler 1 | . 1 . . . Recycler 1 | 1 . . . . Operator 1 | . 1 . . . Swarmer 10 | . 2 3 . 5 Grunt 11 | . 7 4 . . Best Kill Streak 4 | 2 3 4 . 4 Combat Bots Only 4 | . 3 3 . 4 Max Kills in Single Turn 4 | 1 1 4 . 1 Gunslinging . | . . . . . Exploded 3 | . . 3 . 1 Melee . | . . . . . Uniques/NPCs Destroyed . | . . . . . Combat | -11 -10 -10 -10 -9 -------- Run | Yrd Mat Min Exi Min Hostile Shots Fired 119 | . 70 27 . 22 Missed 31 | . 16 7 . 8 Damage Taken 1213 | . 705 268 . 240 Core 253 | . 171 54 . 28 Absorbed by Shields . | . . . . . Regen/Repaired (Parts) 108 | . 108 . . . Core Remaining (%) 100 | 100 . . . . Volleys Fired 99 | 6 61 20 . 12 Largest 2 | 2 2 2 . 2 Hottest 70 | 70 70 40 . 40 Shots Fired 188 | 12 122 39 . 15 Gun 178 | 12 122 38 . 6 Cannon . | . . . . . Launcher 10 | . . 1 . 9 Special . | . . . . . Kinetic 141 | 6 91 38 . 6 Thermal 32 | 6 26 . . . Explosive 10 | . . 1 . 9 Electromagnetic 5 | . 5 . . . Robot Hit Streak 15 | 7 15 9 . 3 Robot Miss Streak 6 | 1 6 3 . 3 Penetration Max . | . . . . . Secondary Targets . | . . . . . Shots Hit Robots 127 | 10 82 29 . 6 Core Hits 60 | 4 31 19 . 6 Critical Kills 1 | . . 1 . . Critical Parts Destroyed . | . . . . . Critical Strikes 4 | . 3 1 . . Burn 2 | . 2 . . . Destroy 1 | . . 1 . . Corrupt 1 | . 1 . . . Melee Attacks . | . . . . . Impact . | . . . . . Slashing . | . . . . . Piercing . | . . . . . Sneak Attacks . | . . . . . Combat Hostiles . | . . . . . Follow-up Attacks . | . . . . . Damage Inflicted 1702 | 108 819 361 . 414 Guns 1170 | 105 797 238 . 30 Cannons . | . . . . . Explosions 486 | . . 102 . 384 Melee . | . . . . . Ramming 46 | 3 22 21 . . Kinetic 845 | 43 534 238 . 30 Thermal 282 | 62 220 . . . Explosive 486 | . . 102 . 384 Electromagnetic 43 | . 43 . . . Impact . | . . . . . Slashing . | . . . . . Piercing . | . . . . . Highest Corruption . | . . . . . Average Corruption . | . . . . . Corruption Purged . | . . . . . Corruption Blocked . | . . . . . Overload Shots . | . . . . . Overflow Damage . | . . . . . Projectiles . | . . . . . Explosions . | . . . . . Melee . | . . . . . Knockbacks . | . . . . . Impact . | . . . . . Kinetic . | . . . . . Secondary . | . . . . . Self-Inflicted Damage 116 | . . . . 116 Shots 4 | . . . . 4 Rammed 7 | 1 6 . . . Targets Rammed 11 | 1 6 4 . . Kicked 4 | . . 4 . . Crushed . | . . . . . Highest Temperature 369 | 70 369 18 . . Average Temperature 122 | 37 149 10 . . Received Heat Transfer 510 | . 327 183 . . Siege Activations . | . . . . . Robots Corrupted . | . . . . . Combat Hostiles . | . . . . . Parts Fried . | . . . . . Impact Corruptions . | . . . . . Robots Melted . | . . . . . Combat Hostiles . | . . . . . Parts Melted 1 | . 1 . . . Heat Transferred 962 | 185 777 . . . Parts Sabotaged . | . . . . . Parts Stolen . | . . . . . Parts Stripped . | . . . . . Power Chain Reactions . | . . . . . Alert | -11 -10 -10 -10 -9 ------- Run | Yrd Mat Min Exi Min Peak Influence 196 | 10 132 141 . 196 Initial 24 | . 6 24 . . Average 57 | 4 55 49 . 142 Maximum Alert Level . | . . . . . Low Security (%) 100 | 100 100 100 . 100 Level 1 . | . . . . . Level 2 . | . . . . . Level 3 . | . . . . . Level 4 . | . . . . . Level 5 . | . . . . . High Security . | . . . . . Max Security . | . . . . . Squads Dispatched 2 | . 2 . . . Investigation . | . . . . . Extermination . | . . . . . Reinforcement 2 | . 2 . . . Assault . | . . . . . Garrison . | . . . . . Intercept . | . . . . . Searches Triggered . | . . . . . Construction Impeded . | . . . . . Haulers Reinforced . | . . . . . Active Scanning Responses . | . . . . . Cargo Convoy Interrupts . | . . . . . Stealth | -11 -10 -10 -10 -9 --------- Run | Yrd Mat Min Exi Min Distress Signals 2 | . 2 . . . Communications Jammed . | . . . . . Distress Signals . | . . . . . Times Spotted 42 | . 19 7 . 16 Peak Tracking Total 7 | . 4 3 . 7 Tactical Retreats 2 | . . . . 2 Traps | -11 -10 -10 -10 -9 ------- Run | Yrd Mat Min Exi Min Traps Triggered 1 | . 1 . . . Indirectly . | . . . . . Trap Hack Attempts . | . . . . . Triggered . | . . . . . Disarmed . | . . . . . Reprogrammed . | . . . . . Reused . | . . . . . Traps Extracted . | . . . . . Installed . | . . . . . Triggered . | . . . . . Machines | -11 -10 -10 -10 -9 ---------- Run | Yrd Mat Min Exi Min Machines Disabled . | . . . . . Max in Single Turn . | . . . . . Machines Repaired . | . . . . . Machines Dismantled . | . . . . . Machines Sabotaged . | . . . . . Overloaded Fab Kills . | . . . . . Hacking | -11 -10 -10 -10 -9 --------- Run | Yrd Mat Min Exi Min Machines Accessed 9 | . 8 . 1 . Terminals 5 | . 5 . . . Fabricators . | . . . . . Repair Stations 1 | . 1 . . . Recycling Units 2 | . 2 . . . Scanalyzers . | . . . . . Garrison Access . | . . . . . Total Hacks 20 | . 19 . 1 . Successful 16 | . 15 . 1 . Failed 3 | . 3 . . . Catastrophic . | . . . . . Database Lockouts 1 | . 1 . . . Manual 7 | . 7 . . . Terminals 13 | . 13 . . . Fabricators . | . . . . . Repair Stations 4 | . 4 . . . Recycling Units 2 | . 2 . . . Scanalyzers . | . . . . . Garrison Access . | . . . . . Terminal Hacks 9 | . 8 . 1 . Record 2 | . 1 . 1 . Robot Analysis 1 | . 1 . . . Prototype ID Bank 3 | . 3 . . . Level Access Points 1 | . 1 . . . Locate Traps 1 | . 1 . . . Hauler Manifests 1 | . 1 . . . Fabricator Hacks . | . . . . . Repair Station Hacks 4 | . 4 . . . Scan Component 2 | . 2 . . . Repair 2 | . 2 . . . Recycling Unit Hacks 2 | . 2 . . . Retrieve Components 2 | . 2 . . . Scanalyzer . | . . . . . Garrison Access Hacks . | . . . . . Unauthorized Hacks 1 | . 1 . . . Terminals 1 | . 1 . . . Botnet 1 | . 1 . . . Fabricators . | . . . . . Repair Stations . | . . . . . Recycling Units . | . . . . . Scanalyzers . | . . . . . Garrison Access . | . . . . . Data Cores Recovered . | . . . . . Used . | . . . . . Hacking Detections 5 | . 5 . . . Full Trace Events . | . . . . . Feedback Events . | . . . . . Feedback Blocked . | . . . . . Robot Schematics Acquired . | . . . . . Robots Built . | . . . . . Authchips . | . . . . . Time . | . . . . . Total Robot Build Rating . | . . . . . Part Schematics Acquired . | . . . . . Parts Built . | . . . . . Authchips . | . . . . . Time . | . . . . . Total Part Build Rating . | . . . . . Parts Repaired 2 | . 2 . . . Time 52 | . 52 . . . Parts Recycled . | . . . . . Recycled Matter . | . . . . . Retrieved Matter . | . . . . . Retrieved Components 13 | . 13 . . . Parts Scanalyzed . | . . . . . Part Schematics Acquired . | . . . . . Parts Damaged . | . . . . . Bothacking | -11 -10 -10 -10 -9 ------------ Run | Yrd Mat Min Exi Min Used RIF Installer . | . . . . . Robots Hacked . | . . . . . Non-combat . | . . . . . Combat . | . . . . . Robot Hacks Applied . | . . . . . Relay Couplers Released . | . . . . . Fabnet Peak Effective % . | . . . . . Robots Rewired . | . . . . . Allies Hacked . | . . . . . Hacks Repelled . | . . . . . Allies | -11 -10 -10 -10 -9 -------- Run | Yrd Mat Min Exi Min Total Allies 1 | . . 1 . . Largest Group 1 | . . 1 . . Highest-Rated Group 31 | . . 31 . . Highest-Rated Ally 31 | . . 31 . . Total Orders . | . . . . . Ally Attacks . | . . . . . Total Damage . | . . . . . Kills . | . . . . . Allies Corrupted . | . . . . . Allies Melted . | . . . . . Intel | -11 -10 -10 -10 -9 ------- Run | Yrd Mat Min Exi Min Robot Analysis Total 1 | . 1 . . . Derelict Logs Recovered 2 | . . 1 . 1 Drone Launches . | . . . . . Drone Recoveries . | . . . . . Exploration | -11 -10 -10 -10 -9 ------------- Run | Yrd Mat Min Exi Min Turns Passed 3310 | 100 1768 874 392 176 Spaces Moved 1671 | 48 921 420 206 76 Core 9 | 9 . . . . Treads 961 | 39 921 1 . . Legs 701 | . . 419 206 76 Wheels . | . . . . . Hover . | . . . . . Flight . | . . . . . Fastest Speed 50 | 50 160 160 190 190 Average Speed 171 | 139 160 189 190 190 Slowest Speed 190 | 160 160 190 190 190 Overloaded Moves . | . . . . . Propulsion Burnouts . | . . . . . Robots Hopped . | . . . . . Cave-ins Triggered . | . . . . . Exploration Rate (%) 46 | 6 92 66 53 17 Regions Visited 4 Branch Regions 3 Pre-discovered Areas 2 | . . . 1 1 Known Exits Taken . | . . . . . Unknown Exits Taken 4 | 1 1 1 1 . Scrap Searched 2 | . . 1 . 1 Spaces Dug . | . . . . . Terrain Destroyed 94 | . . 12 . 82 Melee . | . . . . . Projectile . | . . . . . AOE 94 | . . 12 . 82 Terrain Rammed . | . . . . . Walls Destroyed . | . . . . . Machines Disabled . | . . . . . Actions | -11 -10 -10 -10 -9 --------- Run | Yrd Mat Min Exi Min Total 1933 | 66 1107 459 208 93 Wait 107 | . 98 8 . 1 Move 1668 | 48 920 419 205 76 Hop . | . . . . . Pick Up 15 | 4 8 1 2 . Fast Attach 11 | 7 3 1 . . Attach 1 | . 1 . . . Detach . | . . . . . Swap 16 | 1 6 5 . 4 Drop 6 | . 4 1 1 . Fire 99 | 6 61 20 . 12 Melee . | . . . . . Ram . | . . . . . Kick 4 | . . 4 . . Crush 6 | . 6 . . . Escape Stasis . | . . . . . Rewire . | . . . . . Trap . | . . . . . Miscellaneous . | . . . . . Route ------- -11/Scrapyard -10/Materials (discovered 5 exits: *Mat x3 / [*Min x2]) -10/Mines (discovered 4 exits: *Mat x2 / *Exi / [*Sub]) -10/Exiles -9/Mines History --------- Turn | Location | Event 14 | -11/Scrapyard | Discovered new exit (range 14) 101 | -11/Scrapyard | Entered Materials 170 | -10/Materials | Central database locked down 170 | -10/Materials | Identified exit to Materials 311 | -10/Materials | Build established: Mutant 377 | -10/Materials | Discovered new exit (range 11) 794 | -10/Materials | Core integrity fell below 50% 1271 | -10/Materials | Repaired Lgt. Treads 1299 | -10/Materials | Repaired Lgt. Assault Rifle 1449 | -10/Materials | Discovered new exit (range 6) 1869 | -10/Materials | Entered Mines 1887 | -10/Mines | Met a Derelict bent on vengeance 1919 | -10/Mines | Received a Mining Laser from a helpful Derelict 2085 | -10/Mines | Discovered exit to Materials (range 7) 2100 | -10/Mines | Received a Rocket Launcher from a helpful Derelict 2332 | -10/Mines | Discovered exit to Materials (range 12) 2343 | -10/Mines | Discovered new exit (range 6) 2419 | -10/Mines | Core integrity fell below 20% 2728 | -10/Mines | Deemed a non-threat by the Exiles lab entrance 2729 | -10/Mines | Discovered new exit (range 5) 2743 | -10/Mines | Entered Exiles 2787 | -10/Exiles | Met 8R-AWN 2821 | -10/Exiles | Met EX-HEX 2892 | -10/Exiles | Met EX-DEC 3035 | -10/Exiles | Learned location of Zion (-7) 3116 | -10/Exiles | Discovered new exit (range 10) 3135 | -10/Exiles | Entered Mines 3238 | -9/Mines | Learned location of Storage (-8) 3269 | -9/Mines | Assembled infested the area 3274 | -9/Mines | Assisted by a Guerilla fighting off Assembled 3311 | -9/Mines | Destroyed by S-10 Pest with Light Assault Rifle Last Messages --------------- need to get out of here! I've been tracking a group of Assembled to figure out where they're coming from, and they're closing on this area, come on!" 03274_ U-05 Engineer builds a Wall. 03275_ 5T-2YK(h): "I'll hold them off! Go on ahead or try to find another way!" 03275_ HV Slug penetrates Wall. 03285_ Destroyed Asb. F-torch. 03288_ HV Slug penetrates Wall. 03291_ HV Slug penetrates Earth. 03293_ HV Slug penetrates as-79697. 03293_ as-79697 suffers critical hit (Destroy). 03293_ as-79697 destroyed. 03297_ as-29427 suffers critical hit (Destroy). 03297_ as-29427 destroyed. 03301_ HV Slug penetrates as-11375. 03301_ as-11375 destroyed. 03301_ HV Slug penetrates Wall. 03311_ S-10 Pest destroyed. Map ----- +----------------------------------------------------+ | ?????????????????????????????????????????????????? | | ?????????????????????????????????????????????????? | | ?????????????????????????????????????????????????? | | ?????????????????????????????????????????????????? | | ?????????????????????????????????????????????????? | | ?????????????????????????????????????????????????? | | ?????????????????????????????????????????????????? | | ?????????????????????????????????????????????????? | | ?????????????????????????????????????????????????? | | ?????????????????????????????????????????????????? | | ?????????????????????????????????????????????? ? | | ?????????????????????????????????????????????? ? | | ?????????????????????????????????????????????? ? | | ?????????????????????????????????????????????? ? | | ?????????????????????????????????????????????? ? | | ?????????????????????????????????????????????? #? | | ?????????????????????????????????????????????? #? | | ?????????????????????????????????????????????# #? | | ?????????????????????????????????????????????# #? | | ?????????????????????????????????????????????# #? | | ????????????????????????????????????????????# ## | | ????????????????????????????????????????????# # | | ????????????????????####????????????????????# # | | ?????????????????#### ###??????############ | | ?????????????????# [ ##?????# | | ????????????"" =%=s @ #?????# | | ?????????????????## s #?????# ####### | | ?????????????????# # #?????# #?????# | | ?????????????????# #### #?????# #?????# | | ?????????????????### ????# #?????# #???### | | ???????????????????#?????# #?????# #???# # | | ?????????????????????????# #?????# #???# # ## | | ???????????????????????## #### #### | # ### | | ???????????????????????# # | ## | | ???????????????????????# # # # | | ???????????????????????# ### # ## | | ??????????????????????#"% ???# # #? | | ??????????????????????##% #???# ## ##? | | ???????????????????????# #???# ## ## #?? | | ???????????????????????# #???# ## # ##?? | | ???????????????????????# ###???# #### ## ####??? | | ???????????????????????" #?????# ??#######?????? | | ???????????????????????" #?????###??????????????? | | ???????????????????????# %#??????????????????????? | | ???????????????????????# #??????????????????????? | | ???????????????????????# ??????????????????????? | | ??????????????????????? ??????????????????????? | | ??????????????????????? ??????????????????????? | | ??????????????????????? ??????????????????????? | | ??????????????????????? ??????????????????????? | +----------------------------------------------------+ Best States ------------- Heat Dissipation 39 Energy Generation 10 Energy Capacity 250 Matter Stores 300 Matter Capacity 300 Sight Range 16 Terrain Scan Density 10 Evasion (%) 50 Recoil Reduction 2 Item Schematics ----------------- None Robot Schematics ------------------ None Fabricated ------------ Nothing Alien Tech Used ----------------- None Achievements -------------- None Challenges ------------ None Game ------ Seed ScrapCentriumLegs Manual? 0 Play Time 00:17:59 Cumulative 12.7 hours Start 2024.04.23 @ 18:31:27 End 2024.04.23 @ 18:52:08 Sessions 1 Manual Loads 0 Difficulty Rogue Special Mode None Game No. 20 Rogue 20 Adventurer 0 Explorer 0 Win Type - Total 1 Types 1/0/0/0/0/0/0/0/0 Lore% 22 Gallery% 19 Achievement% 23 Wizard Run 0 Options --------- Layout 1 ASCII 0 Keyboard 0 Movement Arrows Keybinds 0 Fullscreen 1 Font 24/Smallcaps Map View 50x35 Zoom Use 0% Tactical HUD 1 Map Filters NONE Filters NONE Steam 1 RUN: a14a2288-ef23-4044-b8da-8ca046649ddc